Cogmind - Beta 13 @@@ ROGUE MODE // 2024.07.24 @ 13:39:52 Player: jagoly Result: Destroyed by P3-BL0(R) with Subdweller Laser Performance ------------- Evolutions (0) 0 Regions Visited (2) 400 Robots Destroyed (35) 175 Value Destroyed (844) 844 Prototype IDs (10) 200 Alien Tech Used (0) 0 Bonus (0) 0 TOTAL SCORE: 1619 Bonus ------- None Cogmind --------- Core Integrity 0/250 Matter 256/300 Energy 125/125 System Corruption 0% Temperature Cool (6) Movement Treading (160) Location -10/Subcaves Parts ------- > --- POWER (1) -------- Light Ion Engine > --- PROPULSION (2) --- Light Treads Light Treads > --- UTILITY (2) ------ Heat Sink Large Storage Unit > --- WEAPON (2) ------- Rocket Launcher Mining Claw > --- INVENTORY (15) --- Ion Engine Light Treads Heat Sink Large Storage Unit Sensor Array Hacking Suite Power Bank Medium Laser Subdweller Machine Gun Barrage Gun Barrage Gun Rocket Launcher Multitool Peak State ------------ > --- POWER ------------ Ion Engine > --- PROPULSION ------- Light Treads Light Treads > --- UTILITY ---------- Heat Sink Large Storage Unit > --- WEAPON ----------- Barrage Gun Barrage Gun > --- INVENTORY -------- Ion Engine Light Ion Engine Light Treads Light Treads Heat Sink Large Storage Unit Sensor Array Hacking Suite Medium Laser Subdweller Beam Cannon Subdweller Machine Gun Light Cannon Rocket Launcher Rocket Launcher Mining Claw [Rating: 13] Favorites ----------- Power Ion Engine Engine Ion Engine Propulsion Light Treads Treads Light Treads Leg Aluminum Leg Utility Heat Sink Device Heat Sink Storage Large Storage Unit Weapon Medium Laser Energy Gun Medium Laser Energy Cannon Beam Cannon Ballistic Gun Barrage Gun Ballistic Cannon Light Cannon Launcher Rocket Launcher Slashing Weapon Mining Claw Build | -11 -10 -10 ------- Run | Yrd Mat Sub Slots Evolved . | . . . Power . | . . . Propulsion . | . . . Utility . | . . . Weapon . | . . . Parts Attached 36 | 6 16 14 Power 4 | 1 . 3 Engine 4 | 1 . 3 Core . | . . . Reactor . | . . . Propulsion 9 | 2 5 2 Treads 5 | . 3 2 Leg 4 | 2 2 . Wheel . | . . . Hover . | . . . Flight . | . . . Utility 4 | 1 3 . Device 2 | . 2 . Storage 2 | 1 1 . Processor . | . . . Hackware . | . . . Protection . | . . . Artifact . | . . . Weapon 19 | 2 8 9 Energy Gun 7 | 2 5 . Energy Cannon 2 | . 1 1 Ballistic Gun 3 | . . 3 Ballistic Cannon 1 | . . 1 Launcher 2 | . 1 1 Special Weapon . | . . . Impact Weapon . | . . . Slashing Weapon 4 | . 1 3 Piercing Weapon . | . . . Special Melee Weapon . | . . . Unidentified Prototypes . | . . . Parts Lost 5 | . 1 4 Power 1 | . . 1 Propulsion 2 | . . 2 Utility . | . . . Weapon 2 | . 1 1 Highest Loss Streak 3 | . 1 3 To Critical Strikes . | . . . Average Slot Usage (%) 99 | . 98 99 Engine 13 | . 14 13 Treads 25 | . 23 27 Leg 2 | . 4 . Device 13 | . 13 14 Storage 14 | . 14 14 Energy Gun 13 | . 25 . Energy Cannon 2 | . 2 2 Ballistic Gun 7 | . . 15 Launcher 2 | . . 4 Slashing Weapon 2 | . . 4 Naked Turns . | . . . Heaviest Build 37 | 13 31 37 Greatest Support 40 | 20 40 40 Greatest Overweight (x) 1 | 1 . 1 Average Overweight (x) . | . . . Largest Inventory Capacity 15 | 8 15 15 Average Capacity 14 | 7 13 15 Most Carried 15 | 3 13 15 Average Carried 11 | 2 9 13 Final Capacity 15 | 8 15 15 Final Carried 13 | 3 13 13 Class Distribution -------------------- 100% | Mutant Dominant Class ---------------- Mutant | -10/Materials Mutant | -10/Subcaves Resources | -11 -10 -10 ----------- Run | Yrd Mat Sub Matter Collected 830 | 123 307 400 Remotely . | . . . Salvage Created 971 | . 605 366 Parts 82 | . 63 19 Haulers Intercepted 1 | . 1 . Recyclers Shooed . | . . . Parts Field Recycled . | . . . Retrieved Matter . | . . . Parts Self-Destructed 13 | . . 13 Prevented . | . . . Kills | -11 -10 -10 ------- Run | Yrd Mat Sub Combat Hostiles Destroyed 27 | . 17 10 Guns 16 | . 12 4 Cannons 4 | . 2 2 AOE 6 | . 3 3 Classes Destroyed 9 | . 7 2 Builder 2 | . 2 . Hauler 1 | . 1 . Recycler 1 | . 1 . Operator 1 | . 1 . Watcher 3 | . 3 . Swarmer 9 | . 9 . Grunt 8 | . 8 . Artisan 1 | . . 1 Subdweller 10 | . . 10 Best Kill Streak 7 | . 7 3 Combat Bots Only 4 | . 4 3 Max Kills in Single Turn 2 | . 2 2 Gunslinging . | . . . Exploded 2 | . 2 2 Melee . | . . . Uniques/NPCs Destroyed . | . . . Combat | -11 -10 -10 -------- Run | Yrd Mat Sub Hostile Shots Fired 110 | . 47 63 Missed 32 | . 16 16 Damage Taken 1316 | . 279 1037 Core 268 | . 48 220 Absorbed by Shields . | . . . Core Remaining (%) 100 | 100 . . Volleys Fired 105 | . 53 52 Largest 2 | . 2 2 Hottest 110 | . 110 108 Shots Fired 181 | . 98 83 Gun 138 | . 84 54 Cannon 34 | . 11 23 Launcher 9 | . 3 6 Special . | . . . Kinetic 63 | . . 63 Thermal 109 | . 95 14 Explosive 9 | . 3 6 Electromagnetic . | . . . Robot Hit Streak 18 | . 18 16 Robot Miss Streak 5 | . 5 5 Penetration Max . | . . . Secondary Targets 2 | . 1 1 Max Gunslinging Chain 1 | . 1 1 Shots Hit Robots 103 | . 57 46 Core Hits 51 | . 35 16 Critical Kills 1 | . . 1 Critical Parts Destroyed . | . . . Critical Strikes 4 | . 2 2 Burn 2 | . 2 . Meltdown 1 | . . 1 Blast 1 | . . 1 Melee Attacks 14 | . 1 13 Impact . | . . . Slashing 14 | . 1 13 Piercing . | . . . Sneak Attacks . | . . . Combat Hostiles . | . . . Follow-up Attacks . | . . . Damage Inflicted 2150 | . 1053 1097 Guns 1149 | . 605 544 Cannons 356 | . 122 234 Explosions 645 | . 326 319 Melee . | . . . Ramming . | . . . Kinetic 672 | . . 672 Thermal 833 | . 727 106 Explosive 645 | . 326 319 Electromagnetic . | . . . Impact . | . . . Slashing . | . . . Piercing . | . . . Highest Corruption . | . . . Average Corruption . | . . . Corruption Purged . | . . . Corruption Blocked . | . . . Overload Shots . | . . . Overflow Damage 24 | . 24 . Projectiles . | . . . Explosions 24 | . 24 . Melee . | . . . Knockbacks 3 | . . 3 Impact . | . . . Kinetic 3 | . . 3 Secondary . | . . . Self-Inflicted Damage . | . . . Shots . | . . . Rammed . | . . . Targets Rammed . | . . . Kicked . | . . . Crushed . | . . . Highest Temperature 178 | . 178 14 Average Temperature 46 | . 50 7 Received Heat Transfer 156 | . 48 108 Siege Activations . | . . . Robots Corrupted . | . . . Combat Hostiles . | . . . Parts Fried . | . . . Impact Corruptions . | . . . Robots Melted 1 | . . 1 Combat Hostiles 1 | . . 1 Parts Melted 2 | . 1 1 Heat Transferred 2225 | . 2077 148 Parts Sabotaged . | . . . Parts Stolen . | . . . Parts Stripped . | . . . Power Chain Reactions . | . . . Alert | -11 -10 -10 ------- Run | Yrd Mat Sub Peak Influence 399 | . 399 . Initial . | . . . Average 75 | . 79 . Maximum Alert Level 1 | . 1 . Low Security (%) 87 | 100 86 . Level 1 12 | . 13 . Level 2 . | . . . Level 3 . | . . . Level 4 . | . . . Level 5 . | . . . High Security . | . . . Max Security . | . . . Squads Dispatched 4 | . 4 . Investigation 2 | . 2 . Extermination . | . . . Reinforcement 2 | . 2 . Assault . | . . . Garrison . | . . . Intercept . | . . . Searches Triggered . | . . . Construction Impeded . | . . . Haulers Reinforced . | . . . Active Scanning Responses . | . . . Cargo Convoy Interrupts . | . . . Stealth | -11 -10 -10 --------- Run | Yrd Mat Sub Distress Signals 3 | . 3 . Communications Jammed . | . . . Distress Signals . | . . . Times Spotted 38 | . 25 13 Peak Tracking Total 6 | . 6 3 Tactical Retreats 1 | . 1 . Traps | -11 -10 -10 ------- Run | Yrd Mat Sub Traps Triggered 2 | . 2 . Indirectly . | . . . Trap Hack Attempts . | . . . Triggered . | . . . Disarmed . | . . . Reprogrammed . | . . . Reused . | . . . Traps Extracted . | . . . Installed . | . . . Triggered 1 | . . 1 Machines | -11 -10 -10 ---------- Run | Yrd Mat Sub Machines Disabled 1 | . . 1 Max in Single Turn 1 | . . 1 Machines Repaired . | . . . Machines Dismantled . | . . . Machines Sabotaged . | . . . Overloaded Fab Kills . | . . . Hacking | -11 -10 -10 --------- Run | Yrd Mat Sub Machines Accessed 8 | . 7 1 Terminals 5 | . 5 . Fabricators . | . . . Repair Stations . | . . . Recycling Units 2 | . 2 . Scanalyzers . | . . . Garrison Access . | . . . Total Hacks 23 | . 21 2 Successful 9 | . 7 2 Failed 14 | . 14 . Catastrophic 2 | . 2 . Database Lockouts . | . . . Manual 4 | . 4 . Terminals 16 | . 16 . Fabricators . | . . . Repair Stations . | . . . Recycling Units 5 | . 5 . Scanalyzers . | . . . Garrison Access . | . . . Terminal Hacks 7 | . 5 2 Record 1 | . . 1 Branch Access Points 1 | . 1 . Unreport Threat 1 | . 1 . Locate Traps 2 | . 2 . Dispatch Records 1 | . 1 . Derelict Proto ID Bank 1 | . . 1 Fabricator Hacks . | . . . Repair Station Hacks . | . . . Recycling Unit Hacks 2 | . 2 . Retrieve Components 2 | . 2 . Scanalyzer . | . . . Garrison Access Hacks . | . . . Unauthorized Hacks . | . . . Terminals . | . . . Fabricators . | . . . Repair Stations . | . . . Recycling Units . | . . . Scanalyzers . | . . . Garrison Access . | . . . Data Cores Recovered . | . . . Used . | . . . Hacking Detections 7 | . 7 . Full Trace Events . | . . . Feedback Events . | . . . Feedback Blocked . | . . . Robot Schematics Acquired . | . . . Robots Built . | . . . Authchips . | . . . Time . | . . . Total Robot Build Rating . | . . . Part Schematics Acquired . | . . . Parts Built . | . . . Authchips . | . . . Time . | . . . Total Part Build Rating . | . . . Parts Repaired . | . . . Time . | . . . Parts Recycled . | . . . Recycled Matter . | . . . Retrieved Matter . | . . . Retrieved Components 13 | . 13 . Parts Scanalyzed . | . . . Part Schematics Acquired . | . . . Parts Damaged . | . . . Bothacking | -11 -10 -10 ------------ Run | Yrd Mat Sub Used RIF Installer . | . . . Robots Hacked . | . . . Non-combat . | . . . Combat . | . . . Robot Hacks Applied . | . . . Relay Couplers Released . | . . . Fabnet Peak Effective % . | . . . Robots Rewired . | . . . Allies Hacked . | . . . Hacks Repelled . | . . . Allies | -11 -10 -10 -------- Run | Yrd Mat Sub Total Allies . | . . . Largest Group . | . . . Highest-Rated Group . | . . . Highest-Rated Ally . | . . . Total Orders . | . . . Ally Attacks . | . . . Total Damage . | . . . Kills . | . . . Allies Corrupted . | . . . Allies Melted . | . . . Intel | -11 -10 -10 ------- Run | Yrd Mat Sub Robot Analysis Total . | . . . Derelict Logs Recovered . | . . . Drone Launches . | . . . Drone Recoveries . | . . . Exploration | -11 -10 -10 ------------- Run | Yrd Mat Sub Turns Passed 3035 | 63 1578 1394 Spaces Moved 1401 | 45 617 739 Core 4 | 4 . . Treads 1218 | . 479 739 Legs 179 | 41 138 . Wheels . | . . . Hover . | . . . Flight . | . . . Fastest Speed 50 | 50 120 160 Average Speed 154 | 116 151 160 Slowest Speed 240 | 120 160 240 Overloaded Moves . | . . . Propulsion Burnouts . | . . . Robots Hopped . | . . . Cave-ins Triggered . | . . . Exploration Rate (%) 48 | 4 86 56 Regions Visited 2 Branch Regions 1 Pre-discovered Areas 1 | . . 1 Known Exits Taken . | . . . Unknown Exits Taken 2 | 1 1 . Scrap Searched 4 | . . 4 Spaces Dug 1 | . 1 . Terrain Destroyed 82 | . 18 64 Melee 1 | . 1 . Projectile 4 | . . 4 AOE 77 | . 17 60 Terrain Rammed . | . . . Walls Destroyed . | . . . Machines Disabled . | . . . Actions | -11 -10 -10 --------- Run | Yrd Mat Sub Total 2057 | 53 1164 840 Wait 457 | . 450 7 Move 1399 | 44 616 739 Hop . | . . . Pick Up 24 | 3 15 6 Fast Attach 12 | 6 2 4 Attach 6 | . 3 3 Detach 6 | . 3 3 Swap 18 | . 11 7 Drop 16 | . 10 6 Fire 105 | . 53 52 Melee 14 | . 1 13 Ram . | . . . Kick . | . . . Crush . | . . . Escape Stasis . | . . . Rewire . | . . . Trap . | . . . Miscellaneous . | . . . Route ------- -11/Scrapyard -10/Materials (discovered 5 exits: [*Mat x2] / *Min x2 / *Sub) -10/Subcaves (discovered 1 exit: [*Mat]) History --------- Turn | Location | Event 9 | -11/Scrapyard | Discovered new exit (range 15) 64 | -11/Scrapyard | Entered Materials 280 | -10/Materials | Discovered new exit (range 15) 316 | -10/Materials | Build established: Mutant 374 | -10/Materials | Identified exit to Mines 791 | -10/Materials | Discovered new exit (range 8) 1631 | -10/Materials | Discovered new exit (range 3) 1642 | -10/Materials | Entered Subcaves 1643 | -10/Subcaves | Shifting Twisted Machinery released Barrage Gun 1654 | -10/Subcaves | Shifting Twisted Machinery released Flamer 1654 | -10/Subcaves | Learned location of Zion (-7) 1654 | -10/Subcaves | Met a Zionite searching for "candidates" 1890 | -10/Subcaves | Discovered new exit (range 14) 2273 | -10/Subcaves | Core integrity fell below 50% 2274 | -10/Subcaves | Ambushed by Subdweller buried in earth 2328 | -10/Subcaves | Lost 3 parts (1p1n1w) 2450 | -10/Subcaves | Core integrity fell below 20% 2615 | -10/Subcaves | Ambushed by Subdwellers from Twisted Machinery 2867 | -10/Subcaves | Visited 4L-MR0's lab 2884 | -10/Subcaves | Found Power Bank 3036 | -10/Subcaves | Destroyed by P3-BL0(R) with Subdweller Laser Last Messages --------------- Gun Armor Power Bank Rainbow Chip VL-GR5's Exoskeleton "Deathgrip" Powered Cannon >>Record "Deathgrip" I know VL-GR5 is out there, somewhere, fighting for the freedom of Derelicts everywhere. And definitely doing it in style. I must say I hope some of my less welcome recent visitors run into him sometime. 02877_ 4L-MR0 mumbles: "Who knows where that last prototype ended up, probably tossed aside somewhere as if it were useless junk..." 02878_ Testing Chamber breached. 02884_ Acquired Power Bank. 02890_ Sub. Power Source shoots sparks and powers down. 02893_ Dropped Broken Sub. Power Source. 02959_ S-10 Pest suffers critical hit (Destroy). 02959_ S-10 Pest destroyed. 02967_ CC-KQX(R) destroyed. 02988_ Acquired 21 matter. 03035_ PM-6Y0(R): "ARGHSUB!" Map ----- +----------------------------------------------------+ | ?????????????# #???????????????## #### "## | | ?????????????# #???????????????# ###??## """ | | ??????????##### #???????????????# #????## """ | | ??????????# ##???????????????# ###### " | | ??????????## #????????????????# ### | | ??????????# ##????????????????### "" ### | | ??????????# ###???????????????????# #### | | ??????????# ##?????????????????????# ##?## | | ??????????## #?????????????????????## ##### | | ???????????# #??????????????????????##### "%* | | ??????????## #???????????????????????# " &= | | ??????????# ##??????????##?????????#### !&[% | | ??????????## ##??????#### ???????## ## """ ! | | ??????????# #??????? ##?????# " " " | | ??????????# ##??????? #?????# " ## "" | | ??????????## ##??????? ?????## "#### | | ??????????# ###????? R$ ???????## ##??## | | ?????????## ##????? ????????# ##????# | | ?????????# #????? ????????####????# | | ????????## ##???? ????????????????# | | ????????# #??### R ???????????????# ### | | ????????### &%* ###?# <##?????????????# ??# | | ??????????# = ### ##????????????# ?? | | ??????????# ## ##??????????? ? | | ??????????### % ## ##????????? #?### | | ????????????# % ### @ ### ???? ?????? | | ????????????## ### ?????????? | | ????????????# #### # ????????? | | ????????????#### ### ?????????? | | ???????????????## ##??# #?????????? | | ????????????????#### ########???? #??????????? | | ???????????????????###????????????#####??????????? | | ?????????????????????????????????????????????????? | | ?????????????????????????????????????????????????? | | ?????????????????????????????????????????????????? | | ?????????????????????????????????????????????????? | | ?????????????????????????????????????????????????? | | ?????????????????????????????????????????????????? | | ?????????????????????????????????????????????????? | | ?????????????????????????????????????????????????? | | ?????????????????????????????????????????????????? | | ?????????????????????????????????????????????????? | | ?????????????????????????????????????????????????? | | ?????????????????????????????????????????????????? | | ?????????????????????????????????????????????????? | | ?????????????####????????????????????????????????? | | ???????????### ##???????????????????????????????? | | ??????????## #???????????????????????????????? | | ??????????# #???????????????????????????????? | | ??????????# ##?????######???????????????????? | +----------------------------------------------------+ Best States ------------- Heat Dissipation 35 Energy Generation 15 Energy Capacity 250 Matter Stores 300 Matter Capacity 300 Sight Range 16 Terrain Scan Density 10 Evasion (%) 55 Recoil Reduction 2 Item Schematics ----------------- None Robot Schematics ------------------ None Fabricated ------------ Nothing Alien Tech Used ----------------- None Achievements -------------- None Challenges ------------ None Game ------ Seed SchematicAuthchipCanceller Manual? 0 Play Time 00:29:12 Cumulative 142.8 hours Start 2024.07.24 @ 13:11:54 End 2024.07.24 @ 13:39:52 Sessions 1 Manual Loads 0 Difficulty Rogue Special Mode None Game No. 46 Rogue 46 Adventurer 0 Explorer 0 Win Type - Total 1 Types 1/0/0/0/0/0/0/0/0 Lore% 55 Gallery% 62 Achievement% 46 Wizard Run 0 Options --------- Layout 0 ASCII 0 Keyboard 1 Movement Numpad Keybinds 0 Fullscreen 1 Font 18/X11Bold Map View 76x50 Zoom Use 0% Tactical HUD 1 Map Filters NONE Filters NONE Steam 1 RUN: d79364a1-467e-4a26-847c-2007fa525b50